bitfinex/quotes_ETHUSD_20260114
["timestamp","ask_amount","ask_price","bid_price","bid_amount"]
[1768427012771,0.93062644,3367.0,3366.3,0.37718184]
[1768427012976,0.51537588,3367.1,3366.4,0.77918184]
[1768427013151,0.93062644,3367.5,3366.6,0.37718184]
[1768427013775,0.93062644,3367.9,3366.6,0.37718184]
[1768427014272,0.93062644,3367.9,3366.7,6.31771708]
[1768427014585,0.93062644,3367.8,3366.7,6.31771708]
[1768427017881,0.93062644,3367.8,3366.8,0.37718184]
[1768427018059,0.93062644,3367.8,3366.9,0.89701723]
[1768427020077,0.93062644,3367.8,3367.0,2.97000297]
[1768427021379,0.93062644,3367.8,3366.9,3.86707127]
[1768427025076,0.93062644,3367.8,3367.0,0.002]
[1768427025378,0.001,3367.5,3367.0,0.002]
[1768427025580,0.001,3367.5,3367.1,0.42462531]
[1768427027779,0.93162644,3367.5,3367.1,0.42462531]
[1768427034385,0.93162644,3367.5,3367.0,0.002]
[1768427038983,0.001,3367.2,3367.0,0.002]
[1768427039182,0.93162644,3367.5,3367.0,0.002]
[1768427047501,0.93162644,3367.5,3366.6,2.97229915]
[1768427047673,0.97814035,3367.3,3366.7,3.37226244]
[1768427047878,0.97814035,3367.3,3366.7,4.00673291]
[1768427048501,0.97814035,3367.3,3366.8,2.97017787]
[1768427050173,0.97814035,3367.3,3366.9,0.402]
[1768427050375,0.001,3367.2,3366.9,0.402]
[1768427050697,0.97814035,3367.3,3367.0,0.402]
[1768427052908,0.97814035,3367.3,3367.1,0.402]
[1768427053119,0.97814035,3367.3,3367.2,0.402]
[1768427053398,0.97814035,3367.3,3367.2,0.34357398]
[1768427055084,0.97814035,3367.3,3366.5,2.97038177]
[1768427055278,0.97814035,3367.3,3366.4,2.97045974]
[1768427055479,0.97814035,3367.2,3366.6,2.97034858]
[1768427055674,0.97814035,3367.2,3366.7,0.402]
[1768427055899,0.97814035,3367.2,3366.8,0.402]
[1768427056912,0.97814035,3367.2,3366.9,0.402]
[1768427062381,0.97814035,3367.2,3366.6,2.9703337]
[1768427062585,0.97914035,3367.2,3366.7,0.402]
[1768427068717,0.97914035,3367.2,3366.7,3.37226314]
[1768427068912,0.97914035,3367.2,3366.7,0.402]
[1768427072399,0.97914035,3367.2,3366.7,3.37226607]
[1768427073022,0.97914035,3367.2,3366.7,0.402]
[1768427073530,0.97914035,3367.2,3366.8,0.402]
[1768427074327,0.97914035,3367.2,3366.9,0.402]
[1768427074733,0.97914035,3367.2,3367.0,0.002]
[1768427074897,1.33074783,3367.1,3367.0,0.002]
[1768427075529,0.93289953,3367.1,3367.0,0.002]
[1768427077840,0.77828277,3367.1,3367.0,0.002]
[1768427082139,0.001,3367.2,3367.0,0.002]
[1768427087652,0.93389953,3367.2,3367.0,0.002]
[1768427095051,0.99950058,3367.2,3367.0,0.002]
[1768427098269,0.001,3367.2,3367.0,0.002]
[1768427103874,0.001,3367.2,3366.6,0.002]
[1768427103875,0.99850058,3367.1,3366.6,0.002]
[1768427104187,0.99850058,3366.7,3365.6,0.9357986]
[1768427104336,0.99850058,3366.7,3366.2,0.402]
[1768427105371,0.99850058,3366.4,3365.8,0.002]
[1768427105543,0.99850058,3366.4,3365.9,0.402]
[1768427105741,1.39536286,3366.6,3365.9,0.402]
[1768427106141,0.99850058,3366.5,3365.9,0.402]
[1768427106949,0.39686228,3366.6,3365.9,0.402]
[1768427107151,1.39536286,3366.6,3365.9,0.402]
[1768427107350,0.99850058,3366.5,3365.9,0.402]
[1768427110675,0.99850058,3366.5,3365.8,0.002]
[1768427110888,0.99850058,3366.4,3366.0,0.402]
[1768427111180,0.99850058,3366.4,3366.2,0.002]
[1768427112088,0.75694815,3366.5,3366.2,0.404]
[1768427113376,0.99850058,3367.0,3366.2,0.404]
[1768427113577,2.96998521,3367.1,3366.3,0.9357986]
[1768427113766,4.52136794,3367.2,3366.3,0.9655048]
[1768427113966,0.2335703,3367.1,3366.3,0.9655048]
[1768427114364,0.2335703,3367.1,3366.3,0.9357986]
[1768427114692,1.23207088,3367.1,3366.3,0.9357986]
[1768427116984,1.23207088,3367.1,3366.2,0.404]
[1768427116985,3.96850355,3367.0,3366.2,0.404]
[1768427117173,3.96850355,3367.0,3366.2,1.3397986]
[1768427120259,4.74100382,3367.0,3366.2,1.3397986]
[1768427121175,0.001,3367.2,3366.7,0.9357986]
[1768427121487,0.001,3367.2,3366.8,0.402]
[1768427121894,0.001,3367.2,3366.8,1.3377986]
[1768427122771,0.001,3367.2,3366.8,0.402]
[1768427123873,0.001,3366.9,3366.8,0.402]
[1768427124065,0.001,3367.2,3366.8,0.402]
[1768427125989,0.001,3367.2,3366.9,0.9357986]
[1768427126199,0.001,3367.2,3366.8,0.8328107]
[1768427135902,0.001,3366.9,3366.8,0.8328107]
[1768427136200,0.001,3367.2,3366.8,0.8328107]
[1768427138591,0.001,3367.2,3366.8,0.4308107]
[1768427138797,0.001,3367.2,3366.9,0.402]
[1768427139810,0.001,3367.2,3366.9,0.87589418]
[1768427140807,0.001,3367.2,3366.9,0.402]
[1768427152614,0.9373241,3367.1,3366.2,0.002]
[1768427152817,0.9373241,3367.1,3366.4,2.97050536]
[1768427153314,0.9373241,3367.1,3366.4,3.90630396]
[1768427153718,0.9373241,3367.1,3366.5,2.97043409]
[1768427153921,0.001,3367.2,3366.5,2.97043409]
[1768427154297,0.001,3367.2,3366.4,3.90629165]
[1768427154603,0.9383241,3367.2,3366.4,4.63438204]
[1768427156319,0.9383241,3367.2,3366.4,7.60491435]
[1768427156524,0.9383241,3367.2,3366.4,4.63438204]
[1768427157225,0.9383241,3367.2,3366.5,0.01383115]
[1768427157530,0.9383241,3367.2,3366.5,0.96550304]
[1768427157727,0.9383241,3367.2,3366.5,1.76936492]
[1768427158208,0.9383241,3367.2,3366.6,0.402]
[1768427158414,0.9383241,3367.2,3366.7,0.02970267]
[1768427159649,0.001,3366.9,3366.7,0.002]
[1768427159784,0.001,3367.2,3366.7,0.002]
[1768427161642,0.001,3367.2,3366.7,0.81065042]
[1768427161926,1.551,3367.5,3366.8,0.9357986]
[1768427162106,0.01104578,3367.5,3367.0,0.9357986]
[1768427162301,0.01104578,3367.5,3367.2,0.9357986]
[1768427162523,0.78368408,3368.1,3367.2,0.9357986]
[1768427162832,0.78368408,3368.1,3367.5,0.01104578]
[1768427163033,0.9373241,3368.0,3367.6,0.402]
[1768427164151,0.67224181,3368.1,3367.6,0.402]
[1768427164292,0.9373241,3368.2,3367.6,0.402]
[1768427166521,0.9383241,3368.3,3367.6,0.402]
[1768427166697,0.9373241,3368.2,3367.6,0.402]
[1768427168834,0.001,3368.3,3367.6,0.402]
[1768427169133,0.9373241,3368.2,3367.6,0.402]
[1768427169746,0.9373241,3368.2,3367.6,3.37145298]
[1768427170034,0.9373241,3368.2,3367.7,0.73302876]
[1768427173651,0.9373241,3368.2,3367.9,0.002]
[1768427176845,0.9373241,3368.2,3367.7,0.18502876]
[1768427177350,0.9373241,3368.0,3367.8,0.402]
[1768427179216,0.001,3368.3,3367.8,0.402]
[1768427179550,0.9373241,3368.2,3367.8,0.402]
[1768427183851,0.9373241,3368.2,3367.6,0.002]
[1768427184149,0.9373241,3368.2,3367.9,0.402]
[1768427193459,0.9373241,3368.2,3367.6,0.002]
[1768427193966,0.9373241,3368.2,3367.7,0.402]
[1768427197556,0.001,3367.9,3367.7,0.402]
[1768427204883,0.001,3367.9,3367.6,0.002]
[1768427205065,0.001,3367.9,3367.7,0.402]
[1768427208485,0.90499451,3367.9,3367.1,0.9592507]
[1768427208696,0.90499451,3367.9,3367.2,0.93037185]
[1768427209484,0.90499451,3367.9,3367.2,0.52837185]
[1768427209691,0.90499451,3367.9,3367.3,0.402]
[1768427209862,0.90499451,3367.9,3367.2,0.52837185]
[1768427210078,0.90499451,3367.9,3367.3,0.402]
[1768427210281,0.90499451,3367.9,3366.8,2.97011997]
[1768427210282,0.90399451,3367.8,3366.8,2.97011997]
[1768427210589,0.90399451,3367.8,3366.9,3.37208887]
[1768427211985,0.90399451,3367.8,3367.0,0.402]
[1768427214469,0.90399451,3367.8,3366.9,2.97006988]
[1768427214672,0.90399451,3367.8,3367.0,0.402]
[1768427214875,0.9784983,3367.7,3367.0,0.402]
[1768427215561,0.9784983,3367.7,3367.0,3.37199942]
[1768427216560,0.9784983,3367.7,3367.0,2.96999942]
[1768427216860,0.9784983,3367.7,3367.1,0.402]
[1768427221097,0.9784983,3367.7,3367.3,0.002]
[1768427221395,1.48473629,3367.7,3367.3,0.002]
[1768427222193,0.9784983,3367.6,3367.3,0.002]
[1768427222564,0.9784983,3367.6,3367.4,0.403]
[1768427222961,1.00819054,3367.5,3367.4,0.403]
[1768427223207,0.9784983,3367.5,3367.4,0.403]
[1768427231202,0.9784983,3367.5,3367.3,0.002]
[1768427231500,0.9784983,3367.5,3367.4,0.403]
[1768427241818,1.4822631,3367.7,3367.4,0.403]
[1768427242417,0.97602511,3367.6,3367.4,0.403]
[1768427243339,0.001,3367.9,3367.5,0.96584131]
[1768427243819,0.001,3367.9,3367.6,0.0106561]
[1768427244824,0.97702511,3367.9,3367.6,0.0106561]
[1768427244995,1.00571735,3367.8,3367.7,0.403]
[1768427245328,0.97602511,3367.8,3367.3,0.002]
[1768427245530,0.97602511,3367.6,3367.4,0.403]
[1768427245696,0.97602511,3367.4,3367.3,0.002]
[1768427246324,0.02969224,3367.5,3367.3,0.002]
[1768427246927,1.00571735,3367.5,3367.3,0.002]
[1768427250606,0.97602511,3367.4,3367.0,0.002]
[1768427250797,1.13920428,3367.4,3367.0,0.002]
[1768427251933,1.00571735,3367.3,3367.0,0.002]
[1768427253900,0.16317917,3367.4,3367.0,0.002]
[1768427256530,0.97602511,3367.5,3367.0,0.002]
[1768427256739,4.57155164,3367.7,3367.0,0.002]
[1768427257260,0.97602511,3367.6,3367.0,0.002]
[1768427258330,0.97602511,3367.6,3367.3,0.002]
[1768427259014,3.94552482,3367.6,3367.3,0.002]
[1768427259216,0.97602511,3367.3,3367.0,0.002]
[1768427259426,0.97602511,3367.1,3366.4,0.002]
[1768427260636,0.97602511,3366.9,3366.4,0.002]
[1768427262127,2.96995697,3367.1,3366.4,0.002]
[1768427262331,3.66153004,3367.1,3366.4,0.96784131]
[1768427263937,4.63755515,3367.1,3366.4,0.96784131]
[1768427264811,4.63755515,3367.1,3366.4,0.002]
[1768427269350,0.97602511,3367.0,3366.4,0.002]
[1768427270320,0.97602511,3367.0,3366.7,0.002]
[1768427270522,0.45715992,3367.5,3366.7,0.96114224]
[1768427270523,0.001,3367.3,3366.7,0.96114224]
[1768427270735,0.001,3367.3,3366.8,0.403]
[1768427282658,0.001,3367.3,3366.8,1.36214224]
[1768427283071,0.001,3367.0,3366.8,1.36214224]
[1768427285268,0.001,3367.0,3366.8,0.403]
[1768427296342,0.001,3367.3,3366.8,0.403]
[1768427296542,2.96829004,3369.0,3366.8,0.403]
[1768427296543,0.9428601,3367.8,3367.0,0.95914224]
[1768427296777,3.91216977,3367.8,3367.0,0.95914224]
[1768427296976,0.9428601,3367.7,3367.0,0.95914224]
[1768427297179,0.9428601,3367.7,3366.9,0.23232845]
[1768427297361,0.9428601,3367.7,3367.0,0.02970002]
[1768427297679,0.9428601,3367.7,3367.0,0.75666019]
[1768427298246,0.9428601,3367.7,3367.1,0.02969914]
[1768427298481,0.9428601,3367.7,3366.9,3.92918836]
[1768427298691,0.9428601,3367.7,3366.9,0.95914224]
[1768427298981,3.91225157,3367.7,3366.9,0.95914224]
[1768427299182,3.91225157,3367.7,3366.9,1.68960709]
[1768427299574,0.9428601,3367.7,3366.9,1.68960709]
[1768427300175,3.91225237,3367.7,3366.9,1.68960709]
[1768427300877,0.9428601,3367.7,3366.9,3.70051729]
[1768427301048,3.91225126,3367.7,3367.0,0.403]
[1768427301847,0.93769286,3367.6,3366.9,0.73046485]
[1768427302049,0.93769286,3367.6,3367.1,0.403]
[1768427302892,0.93769286,3367.4,3367.0,0.403]
[1768427303061,0.93769286,3367.2,3367.0,0.403]
[1768427303881,0.93769286,3367.2,3366.9,0.403]
[1768427305881,0.93769286,3367.2,3366.7,0.002]
[1768427306086,0.93769286,3367.0,3366.8,0.403]
[1768427306286,0.93769286,3367.0,3366.7,0.002]
[1768427306490,0.93769286,3367.0,3366.7,0.405]
[1768427308493,0.93769286,3367.2,3366.7,0.405]
[1768427315484,0.001,3367.3,3366.7,1.40159092]
[1768427316189,0.001,3367.3,3366.8,0.43719863]
[1768427317180,0.001,3367.3,3366.8,1.43378955]
[1768427317361,0.001,3367.3,3366.8,0.99659092]
[1768427317561,0.001,3367.3,3366.8,3.9667368]
[1768427317788,0.001,3367.3,3366.9,0.02970091]
[1768427317989,0.001,3367.3,3366.8,3.96675649]
[1768427318381,0.001,3367.3,3367.1,0.002]
[1768427319086,0.001,3367.3,3367.2,0.403]
[1768427342619,0.93769286,3367.6,3367.2,0.403]
[1768427347634,0.93769286,3367.6,3367.1,0.002]
[1768427347825,0.93769286,3367.6,3367.2,0.403]
[1768427349331,3.96726604,3367.8,3367.2,0.403]
[1768427349508,0.99793773,3367.8,3367.2,6.35713561]
[1768427349709,0.99793773,3367.8,3367.3,0.02969738]
[1768427350832,0.99793773,3367.8,3367.2,6.35713561]
[1768427352636,0.99793773,3367.8,3367.2,1.07210388]
[1768427355743,0.001,3367.5,3367.2,1.07210388]
[1768427355907,0.001,3367.5,3367.3,0.20454118]
[1768427356325,0.99893773,3367.5,3367.3,0.60754118]
[1768427356540,0.99893773,3367.5,3367.3,0.403]
[1768427357752,0.99793773,3367.4,3367.1,0.002]
[1768427363749,0.9230411,3367.3,3367.1,0.002]
[1768427364443,0.9230411,3367.2,3367.1,0.002]
[1768427364754,0.9230411,3367.2,3366.9,0.403]
[1768427364940,1.61234863,3367.2,3366.9,0.403]
[1768427365141,0.9230411,3367.2,3366.9,0.403]
[1768427365649,0.9230411,3367.2,3366.8,0.405]
[1768427368250,0.9230411,3367.2,3367.1,0.002]
[1768427374428,0.9230411,3367.2,3366.8,0.405]
[1768427375447,1.6123447,3367.2,3366.8,0.405]
[1768427376322,0.6893036,3367.2,3366.8,0.405]
[1768427380355,0.001,3367.5,3367.1,0.002]
[1768427380558,0.001,3367.5,3367.1,0.96584343]
[1768427383648,0.001,3367.5,3367.1,0.002]
[1768427387344,0.001,3367.5,3367.2,0.403]
[1768427387345,0.9240411,3367.5,3367.2,0.403]
[1768427390168,3.89360742,3367.5,3367.2,0.403]
[1768427390466,0.68629952,3367.4,3367.2,0.403]
[1768427395272,0.9240411,3367.5,3367.2,0.403]
[1768427395572,3.8936439,3367.5,3367.2,0.403]
[1768427400279,0.9240411,3367.5,3367.2,0.403]
[1768427400678,3.89363562,3367.5,3367.2,0.403]
[1768427401183,0.92286617,3367.4,3367.2,0.403]
[1768427401352,0.92286617,3367.3,3367.1,0.002]
[1768427402554,0.6862873,3367.4,3367.1,0.002]
[1768427402756,0.001,3367.5,3367.1,0.002]
[1768427402952,0.92386617,3367.5,3367.1,0.002]
[1768427403984,0.001,3367.2,3367.1,0.002]
[1768427407882,0.001,3367.9,3367.1,1.00293886]
[1768427408075,0.001,3367.9,3367.1,0.97323972]
[1768427408382,0.001,3367.9,3367.2,1.40587247]
[1768427409487,2.9702159,3367.9,3367.2,1.40587247]
[1768427409860,0.001,3367.9,3367.3,0.97123972]
[1768427410059,0.001,3367.9,3367.5,0.97123972]
[1768427411291,2.96836072,3368.9,3367.5,0.97123972]
[1768427411292,6.85934583,3369.0,3367.8,0.97123972]
[1768427411490,3.891106,3369.0,3368.0,0.97123972]
[1768427411663,3.891106,3369.0,3367.9,0.403]
[1768427411664,0.92286617,3368.8,3367.9,0.403]
[1768427412084,0.92286617,3368.8,3368.0,0.97123972]
[1768427412687,0.92286617,3369.3,3368.0,0.97123972]
[1768427413391,3.89084171,3369.3,3368.0,0.97123972]
[1768427414181,2.96890725,3369.4,3368.2,0.97123972]
[1768427414182,0.92286617,3369.2,3368.2,0.97123972]
[1768427415089,1.60881266,3369.2,3368.2,0.97123972]
[1768427415275,0.92286617,3369.1,3368.2,0.97123972]
[1768427416176,3.89106453,3369.1,3368.2,0.97123972]
[1768427416375,0.92286617,3369.1,3368.2,0.97123972]
[1768427416777,0.001,3368.9,3368.2,0.97123972]
[1768427416960,0.001,3368.9,3368.2,1.70247737]
[1768427417897,0.001,3368.9,3368.2,4.67142162]
[1768427418904,0.001,3368.9,3368.2,1.70247737]
[1768427422205,0.001,3368.9,3368.2,4.67140256]
[1768427422591,0.001,3368.9,3368.2,1.70247737]
[1768427422911,0.001,3368.9,3368.3,0.46714917]
[1768427423216,0.001,3368.9,3368.4,0.403]
[1768427423623,0.001,3368.9,3368.4,1.3255021]
[1768427424198,0.001,3368.9,3368.5,0.0296868]
[1768427425420,0.001,3368.9,3368.4,1.3255021]
[1768427425720,0.001,3368.9,3368.4,0.403]
[1768427426913,0.001,3368.9,3368.5,0.9225021]
[1768427427584,0.001,3368.9,3368.4,3.37175417]
[1768427428193,0.001,3368.9,3368.5,0.9225021]
[1768427428419,0.99978544,3369.4,3368.6,0.95218802]
[1768427428629,0.99978544,3369.4,3368.6,0.9225021]
[1768427428931,0.99978544,3369.4,3368.7,0.72630248]
[1768427430295,0.99978544,3369.4,3368.7,1.64880458]
[1768427430796,0.99978544,3369.4,3368.7,0.72630248]
[1768427430996,0.99978544,3369.4,3368.6,2.96858813]
[1768427431197,0.99978544,3369.4,3368.5,3.89112275]
[1768427431516,3.96768492,3369.4,3368.5,0.9225021]
[1768427431714,0.99978544,3369.4,3368.5,3.89117401]
[1768427432414,3.96769206,3369.4,3368.5,0.9225021]
[1768427432618,0.99878544,3369.3,3368.6,0.42942391]
[1768427433506,0.001,3369.4,3368.7,0.9225021]
[1768427435915,0.001,3369.4,3368.8,0.403]
[1768427436119,3.07838769,3369.5,3368.8,0.403]
[1768427436619,3.07838769,3369.5,3368.8,1.3255021]
[1768427437116,0.99878544,3369.9,3368.8,1.3255021]
[1768427437326,0.99878544,3369.7,3368.8,1.3255021]
[1768427438982,3.70132447,3369.8,3368.9,0.9225021]
[1768427439187,6.9339485,3369.8,3368.9,0.9225021]
[1768427439582,0.99878544,3369.7,3368.9,0.9225021]
[1768427441523,0.99878544,3369.7,3369.1,0.001]
[1768427441701,0.99878544,3369.7,3369.2,0.403]
[1768427442026,3.9664383,3369.7,3369.2,0.403]
[1768427443022,0.99878544,3369.6,3369.2,0.403]
[1768427443423,1.02847768,3369.6,3369.2,0.403]
[1768427443624,0.99878544,3369.4,3369.1,0.001]
[1768427443802,1.02847768,3369.4,3369.1,0.001]
[1768427445738,0.02969224,3369.4,3369.1,0.001]
[1768427446022,5.27956083,3370.4,3369.1,0.001]
[1768427446023,3.96635591,3369.8,3369.1,0.001]
[1768427446194,1.69215951,3369.8,3369.1,0.001]
[1768427446931,4.65969823,3369.8,3369.1,0.001]
[1768427447293,1.69215951,3369.8,3369.1,0.001]
[1768427447498,5.27956083,3370.4,3369.1,0.001]
[1768427447499,0.99878544,3370.5,3369.2,0.9225021]
[1768427447804,6.9327992,3370.4,3369.4,0.9225021]
[1768427448103,0.99878544,3370.3,3369.4,0.9225021]
[1768427448309,0.99878544,3370.3,3369.4,1.83961488]
[1768427448504,0.99878544,3370.3,3369.4,0.9225021]
[1768427449236,0.99878544,3370.3,3369.1,0.001]
[1768427449409,0.99878544,3370.3,3369.2,0.9225021]
[1768427449596,1.02847768,3370.3,3369.1,0.001]
[1768427449796,0.99878544,3370.1,3369.2,0.403]
[1768427450108,0.99878544,3369.9,3369.2,0.8324778]
[1768427451206,0.99878544,3369.9,3369.2,0.403]
[1768427451839,3.94114735,3369.8,3369.2,0.403]
[1768427453630,0.002,3369.5,3369.2,0.403]
[1768427464927,0.002,3369.5,3369.1,0.001]
[1768427465239,0.002,3369.5,3369.1,0.404]
[1768427467139,0.002,3369.5,3369.1,1.81459255]
[1768427467323,0.002,3369.5,3369.2,0.97578163]
[1768427468635,0.002,3369.5,3369.2,1.00546226]
[1768427470075,0.002,3369.5,3369.3,0.97578163]
[1768427470376,0.002,3369.5,3369.4,0.02967887]
[1768427470578,0.002,3369.5,3369.3,0.97578163]
[1768427470867,0.002,3369.5,3369.3,1.45405059]
[1768427471775,0.002,3369.5,3369.4,0.403]
[1768427471967,0.002,3369.5,3369.1,0.001]
[1768427472183,0.002,3369.5,3369.1,0.404]
[1768427472355,0.002,3369.5,3369.1,0.001]
[1768427472543,0.002,3369.5,3369.1,0.404]
[1768427472940,0.97561219,3369.5,3369.1,0.404]
[1768427473360,0.002,3369.5,3369.1,0.404]
[1768427477585,0.002,3369.2,3369.1,0.404]
[1768427479984,0.002,3369.5,3369.1,0.404]
[1768427481881,0.92328441,3369.5,3369.1,0.001]
[1768427482084,0.92128441,3369.1,3368.1,0.9447445]
[1768427482286,5.27956083,3369.2,3368.6,0.403]
[1768427482287,1.54136893,3369.0,3368.6,0.403]
[1768427482591,0.92128441,3369.0,3368.6,0.403]
[1768427484262,0.92128441,3369.0,3368.2,1.9447445]
[1768427484593,0.92128441,3368.9,3368.2,1.0]
[1768427484894,0.92128441,3368.9,3368.2,1.403]
[1768427485989,0.92128441,3368.9,3368.2,1.0]
[1768427486163,0.92128441,3368.6,3368.2,1.0]
[1768427489704,2.96836286,3368.9,3368.2,1.0]
[1768427489905,0.92128441,3369.0,3368.3,0.02968856]
[1768427490085,2.96790712,3369.4,3368.3,0.97443306]
[1768427490086,3.88917186,3369.4,3368.3,0.97443306]
[1768427490282,3.26498159,3369.3,3368.3,0.97443306]
[1768427490479,3.26498159,3369.3,3368.4,0.9447445]
[1768427490706,2.96791625,3369.4,3368.4,0.9447445]
[1768427490878,2.96982866,3369.5,3368.6,0.9447445]
[1768427491082,2.96982866,3369.5,3368.7,1.3477445]
[1768427492421,5.93765732,3369.5,3368.7,1.3477445]
[1768427492592,6.85894173,3369.5,3368.7,1.3477445]
[1768427492798,0.68589417,3369.4,3368.7,1.3477445]
[1768427494937,2.96797554,3369.3,3368.7,0.403]
[1768427495507,2.96797554,3369.3,3368.5,0.9457445]
[1768427495727,2.96797554,3369.3,3368.6,1.3477445]
[1768427503346,1.60717858,3369.4,3368.9,0.001]
[1768427503347,4.57510489,3369.4,3368.9,0.001]
[1768427503531,0.68589417,3369.4,3368.9,0.001]
[1768427503846,2.96980397,3369.5,3368.9,0.9457445]
[1768427505180,0.002,3369.5,3368.9,0.001]
[1768427512576,0.92128347,3369.5,3368.9,0.001]
[1768427514656,3.88717092,3369.4,3368.9,0.001]
[1768427515557,0.002,3369.2,3368.9,0.001]
[1768427516675,2.97006363,3369.2,3368.9,0.001]
[1768427519890,0.002,3369.2,3368.9,0.001]
[1768427521512,0.002,3369.5,3369.0,0.9544835]
[1768427522198,0.002,3369.5,3368.9,0.001]
[1768427522908,2.96979937,3369.5,3368.9,0.001]
[1768427523414,0.94897571,3369.4,3368.9,0.001]
[1768427525710,3.88721496,3369.4,3368.9,0.001]
[1768427526389,0.91928347,3369.4,3368.9,0.001]
[1768427526591,0.002,3369.5,3368.9,0.9554835]
[1768427526794,0.002,3369.5,3369.1,0.9544835]
[1768427527831,0.002,3369.5,3369.0,0.43269696]
[1768427528131,0.002,3369.2,3368.9,0.9554835]
[1768427530805,0.002,3369.2,3368.9,0.001]
[1768427535746,0.002,3369.2,3368.9,0.9554835]
[1768427542963,0.002,3369.2,3368.9,0.001]
[1768427545470,0.002,3369.8,3369.1,0.92639305]
[1768427545639,0.94001677,3370.3,3369.6,0.92639305]
[1768427545961,3.90714763,3370.3,3369.7,0.403]
[1768427546567,0.94001677,3370.2,3369.7,0.403]
[1768427553182,0.002,3369.9,3369.7,0.403]
[1768427559105,3.90671986,3370.8,3369.8,0.92639305]
[1768427559271,3.90671986,3370.8,3369.9,1.35609285]
[1768427559471,0.94001677,3370.7,3369.9,0.4296998]
[1768427560005,3.9068476,3370.6,3369.9,0.4296998]
[1768427560672,0.94001677,3370.6,3369.9,0.4296998]
[1768427565819,0.002,3370.3,3370.0,0.92639305]
[1768427565998,0.94001677,3371.1,3370.2,0.92639305]
[1768427566196,2.96653961,3371.0,3370.3,1.32939305]
[1768427566511,3.90655638,3371.0,3370.3,0.403]
[1768427566811,0.94001677,3370.9,3370.3,0.403]
[1768427569694,3.90658499,3370.9,3370.3,0.403]
[1768427569901,0.94001677,3370.8,3370.3,0.403]
[1768427571619,3.94360927,3371.0,3370.3,0.403]
[1768427573229,3.94360927,3371.0,3370.3,1.39588548]
[1768427573430,3.94360927,3371.0,3370.3,1.83220095]
[1768427575434,3.94360927,3371.0,3370.3,1.39588548]
[1768427577836,3.94360927,3371.0,3370.6,0.001]
[1768427579242,6.91015471,3371.0,3370.6,0.001]
[1768427579443,0.97709193,3370.5,3369.6,0.99288548]
[1768427579634,1.60230046,3370.4,3369.6,0.99288548]
[1768427579839,0.97709193,3370.4,3369.6,0.99288548]
[1768427580570,0.97709193,3370.4,3369.7,0.99288548]
[1768427580772,0.97709193,3370.6,3369.7,0.99288548]
[1768427581749,3.94393928,3370.6,3369.7,0.99288548]
[1768427583873,2.96678498,3370.7,3369.8,0.99288548]
[1768427584041,3.35632257,3370.7,3369.8,0.99288548]
[1768427585893,3.35632257,3370.7,3369.7,0.403]
[1768427585894,0.97709193,3370.5,3369.7,0.403]
[1768427588277,0.97709193,3370.3,3369.7,0.403]
[1768427589978,0.97709193,3370.3,3370.0,0.001]
[1768427590661,3.94423298,3370.3,3370.0,0.001]
[1768427590957,1.70860976,3370.3,3370.0,0.001]
[1768427591381,4.67571477,3370.3,3370.0,0.001]
[1768427592375,4.67571303,3370.3,3370.0,0.001]
[1768427592578,1.70860976,3370.3,3370.0,0.001]
[1768427593850,0.73151783,3370.3,3370.0,0.001]
[1768427594045,0.404,3370.5,3370.0,0.001]
[1768427594272,0.97709193,3370.7,3370.0,0.001]
[1768427594479,2.96675079,3370.7,3370.0,0.99388548]
[1768427594875,3.37063238,3370.9,3370.1,0.99288548]
[1768427595060,4.34772431,3370.9,3370.1,0.99288548]
[1768427595272,6.36808203,3370.8,3370.1,0.99288548]
[1768427597891,7.34517396,3370.8,3370.1,0.99288548]
[1768427598497,7.34517396,3370.8,3370.0,0.001]
[1768427599199,0.97709193,3370.7,3370.0,0.001]
[1768427601905,2.96683083,3370.6,3370.0,0.001]
[1768427602296,0.002,3370.5,3370.0,0.001]
[1768427607210,0.96713158,3370.5,3370.0,0.001]
[1768427607412,0.99682382,3370.5,3370.0,0.001]
[1768427608710,3.96382204,3370.5,3370.0,0.001]
[1768427609720,0.96513158,3370.4,3370.0,0.001]
[1768427611291,3.93217034,3370.4,3370.0,0.001]
[1768427613516,2.96703876,3370.4,3370.0,0.001]
[1768427615015,0.96513158,3370.3,3370.0,0.001]
[1768427616104,2.96703876,3370.4,3370.0,0.001]
[1768427617413,4.10968964,3370.5,3370.0,0.001]
[1768427617620,8.04176833,3370.5,3370.0,0.001]
[1768427618522,5.07482122,3370.5,3370.0,0.001]
[1768427620821,8.04176833,3370.5,3370.0,0.001]
[1768427621003,1.76930841,3370.4,3370.0,0.001]
[1768427624295,4.73636099,3370.4,3370.0,0.001]
[1768427625425,5.27499337,3370.2,3369.4,0.98434904]
[1768427625630,6.73828199,3370.4,3369.2,0.98534904]
[1768427625631,5.27499337,3369.9,3369.2,0.98534904]
[1768427626470,2.96753516,3369.8,3369.2,0.98534904]
[1768427628442,6.89994089,3370.0,3369.2,0.98534904]
[1768427630053,0.96513158,3369.9,3369.2,0.001]
[1768427630936,0.98499472,3369.7,3369.2,0.001]
[1768427631247,1.67700122,3369.6,3369.2,0.001]
[1768427632890,0.6920065,3369.6,3369.2,0.001]
[1768427633464,0.404,3369.6,3369.2,0.001]
[1768427634771,2.96779937,3369.5,3369.2,0.001]
[1768427638266,3.37174978,3369.6,3369.2,0.001]
[1768427640685,3.37174978,3369.6,3369.5,0.001]
[1768427640849,3.37174978,3369.6,3369.2,0.001]
[1768427641050,4.10419048,3369.6,3369.2,0.001]
[1768427641580,0.404,3369.6,3369.2,0.95240539]
[1768427643975,2.96764701,3369.7,3369.2,0.95240539]
[1768427644209,3.37164701,3369.7,3369.2,0.95240539]
[1768427646709,3.37164701,3369.7,3369.2,0.001]
[1768427648009,2.96764701,3369.7,3369.2,0.001]